[Event "*** Titled Tuesday Blitz"]
[Site "Chess.com"]
[Date "2020.04.28"]
[Round "4"]
[White "djano"]
[Black "Zarikovs1999"]
[Result "0-1"]
[WhiteElo "2446"]
[BlackElo "2286"]
[TimeControl "180+1"]
[EndTime "10:42:55 PDT"]
[Termination "Zarikovs1999 won on time"]

1. d4 {[%clk 0:03:00.9]} 1... Nf6 {[%clk 0:02:59.5]} 2. Nf3 {[%clk 0:03:00.6]}
2... e6 {[%clk 0:02:59.2]} 3. Bf4 {[%clk 0:03:00.6]} 3... d5 {[%clk 0:02:57.9]}
4. e3 {[%clk 0:03:00.6]} 4... c5 {[%clk 0:02:58]} 5. c3 {[%clk 0:03:00.8]} 5...
Nc6 {[%clk 0:02:57.9]} 6. Nbd2 {[%clk 0:03:00.4]} 6... Bd6 {[%clk 0:02:57.2]} 7.
Bg3 {[%clk 0:02:53.1]} 7... Qe7 {[%clk 0:02:51.8]} 8. Bb5 {[%clk 0:02:49.7]}
8... Bd7 {[%clk 0:02:37.2]} 9. Qe2 {[%clk 0:02:49]} 9... a6 {[%clk 0:02:34.6]}
10. Bxc6 {[%clk 0:02:48.2]} 10... Bxc6 {[%clk 0:02:33.8]} 11. Bxd6 {[%clk
0:02:47.7]} 11... Qxd6 {[%clk 0:02:33.3]} 12. dxc5 {[%clk 0:02:43.4]} 12... Qxc5
{[%clk 0:02:34.2]} 13. Nd4 {[%clk 0:02:40.8]} 13... e5 {[%clk 0:02:31.5]} 14.
Nxc6 {[%clk 0:02:36.2]} 14... bxc6 {[%clk 0:02:31.3]} 15. O-O {[%clk 0:02:34.9]}
15... O-O {[%clk 0:02:31.6]} 16. Rac1 {[%clk 0:02:27.8]} 16... Rfe8 {[%clk
0:02:27.4]} 17. b4 {[%clk 0:02:25.6]} 17... Qd6 {[%clk 0:02:26.7]} 18. Rfd1
{[%clk 0:02:22.5]} 18... Qc7 {[%clk 0:02:17.4]} 19. Nb3 {[%clk 0:02:16.8]} 19...
e4 {[%clk 0:02:02.5]} 20. c4 {[%clk 0:02:12.9]} 20... Qd6 {[%clk 0:01:57.9]} 21.
cxd5 {[%clk 0:02:11.8]} 21... cxd5 {[%clk 0:01:58.8]} 22. Nc5 {[%clk 0:02:05.8]}
22... h5 {[%clk 0:01:55.8]} 23. h3 {[%clk 0:02:02.9]} 23... g6 {[%clk
0:01:54.5]} 24. Qb2 {[%clk 0:02:01.6]} 24... Rab8 {[%clk 0:01:46.2]} 25. Qd4
{[%clk 0:02:00.9]} 25... Red8 {[%clk 0:01:38.2]} 26. a3 {[%clk 0:01:59.2]} 26...
Kh7 {[%clk 0:01:25.7]} 27. g3 {[%clk 0:01:57.5]} 27... h4 {[%clk 0:01:19.6]} 28.
g4 {[%clk 0:01:56.5]} 28... Ng8 {[%clk 0:01:13.1]} 29. Nxe4 {[%clk 0:01:52.9]}
29... Qe7 {[%clk 0:01:04]} 30. Nc5 {[%clk 0:01:52]} 30... Rb6 {[%clk 0:01:03.5]}
31. Nd3 {[%clk 0:01:47]} 31... Rbd6 {[%clk 0:01:03.2]} 32. Nf4 {[%clk
0:01:46.9]} 32... Nf6 {[%clk 0:01:02]} 33. f3 {[%clk 0:01:32.3]} 33... g5 {[%clk
0:01:00.4]} 34. Nd3 {[%clk 0:01:31.3]} 34... Re8 {[%clk 0:00:59.5]} 35. Re1
{[%clk 0:01:30.7]} 35... Re6 {[%clk 0:00:52.5]} 36. Kf2 {[%clk 0:01:31]} 36...
Rd8 {[%clk 0:00:49.1]} 37. Rc5 {[%clk 0:01:27.6]} 37... Ne4+ {[%clk 0:00:47.2]}
38. Kg2 {[%clk 0:01:09.9]} 38... Nxc5 {[%clk 0:00:46.4]} 39. Nxc5 {[%clk
0:01:10.8]} 39... Rc6 {[%clk 0:00:41.2]} 40. Kf2 {[%clk 0:01:00.4]} 40... a5
{[%clk 0:00:40.2]} 41. Rb1 {[%clk 0:00:56.9]} 41... axb4 {[%clk 0:00:40.1]} 42.
axb4 {[%clk 0:00:57.5]} 42... Re8 {[%clk 0:00:37.3]} 43. Rb3 {[%clk 0:00:56.2]}
43... Qa7 {[%clk 0:00:32.9]} 44. Rb2 {[%clk 0:00:44]} 44... Qe7 {[%clk
0:00:31.1]} 45. Re2 {[%clk 0:00:38.6]} 45... Qe5 {[%clk 0:00:27.2]} 46. Qd3+
{[%clk 0:00:38.9]} 46... Kg7 {[%clk 0:00:25.7]} 47. Qf5 {[%clk 0:00:38.7]} 47...
Qg3+ {[%clk 0:00:23.5]} 48. Kf1 {[%clk 0:00:38.3]} 48... Qxh3+ {[%clk
0:00:22.6]} 49. Ke1 {[%clk 0:00:38.7]} 49... Qg3+ {[%clk 0:00:20.7]} 50. Kd2
{[%clk 0:00:38.9]} 50... Qe5 {[%clk 0:00:21.2]} 51. Qxe5+ {[%clk 0:00:30.8]}
51... Rxe5 {[%clk 0:00:21]} 52. Kd3 {[%clk 0:00:31.4]} 52... Re8 {[%clk
0:00:16.7]} 53. Kd4 {[%clk 0:00:31.6]} 53... Rb6 {[%clk 0:00:17]} 54. Nd3 {[%clk
0:00:31.1]} 54... Rb5 {[%clk 0:00:16.1]} 55. e4 {[%clk 0:00:27.9]} 55... dxe4
{[%clk 0:00:15.8]} 56. fxe4 {[%clk 0:00:27.6]} 56... Kg6 {[%clk 0:00:13.8]} 57.
Kc4 {[%clk 0:00:26.9]} 57... Reb8 {[%clk 0:00:11.9]} 58. e5 {[%clk 0:00:25.9]}
58... R5b6 {[%clk 0:00:11.5]} 59. Kc5 {[%clk 0:00:25]} 59... Rb5+ {[%clk
0:00:11.3]} 60. Kc4 {[%clk 0:00:25.4]} 60... R8b6 {[%clk 0:00:11.2]} 61. Re3
{[%clk 0:00:21]} 61... Rb8 {[%clk 0:00:10.9]} 62. Re4 {[%clk 0:00:19.2]} 62...
R5b7 {[%clk 0:00:10]} 63. Kc5 {[%clk 0:00:16.4]} 63... Rc8+ {[%clk 0:00:08.9]}
64. Kd6 {[%clk 0:00:16.4]} 64... Rc3 {[%clk 0:00:08.8]} 65. Nc5 {[%clk
0:00:15.9]} 65... Rb6+ {[%clk 0:00:08.8]} 66. Kc7 {[%clk 0:00:15.7]} 66... Re6
{[%clk 0:00:02.7]} 67. Kb7 {[%clk 0:00:13.7]} 67... Re7+ {[%clk 0:00:02.4]} 68.
Kb6 {[%clk 0:00:13.4]} 68... h3 {[%clk 0:00:03.2]} 69. Re2 {[%clk 0:00:12.6]}
69... Re8 {[%clk 0:00:03]} 70. b5 {[%clk 0:00:07.9]} 70... Rb8+ {[%clk
0:00:02.5]} 71. Nb7 {[%clk 0:00:07.5]} 71... Rb3 {[%clk 0:00:02]} 72. Kc7 {[%clk
0:00:07.1]} 72... Rxb7+ {[%clk 0:00:02.3]} 73. Kxb7 {[%clk 0:00:08]} 73... Rxb5+
{[%clk 0:00:03]} 74. Kc6 {[%clk 0:00:07.8]} 74... Rb4 {[%clk 0:00:03.9]} 75. e6
{[%clk 0:00:06.4]} 75... fxe6 {[%clk 0:00:03.9]} 76. Rxe6+ {[%clk 0:00:07.2]}
76... Kf7 {[%clk 0:00:04.4]} 77. Rh6 {[%clk 0:00:06.8]} 77... Rxg4 {[%clk
0:00:02.3]} 78. Rxh3 {[%clk 0:00:06.8]} 78... Ke6 {[%clk 0:00:02.8]} 79. Re3+
{[%clk 0:00:05.7]} 79... Kf5 {[%clk 0:00:03.2]} 80. Kd5 {[%clk 0:00:06.5]} 80...
Rf4 {[%clk 0:00:03]} 81. Re8 {[%clk 0:00:06.5]} 81... Kg4 {[%clk 0:00:02.6]} 82.
Ke5 {[%clk 0:00:03.7]} 82... Kf3 {[%clk 0:00:01.8]} 83. Rg8 {[%clk 0:00:03.1]}
83... g4 {[%clk 0:00:01.8]} 84. Ra8 {[%clk 0:00:03.2]} 84... Re4+ {[%clk
0:00:02.4]} 85. Kf5 {[%clk 0:00:03.2]} 85... Rf4+ {[%clk 0:00:03.3]} 86. Kg5
{[%clk 0:00:01.1]} 86... Re4 {[%clk 0:00:03.6]} 87. Ra3+ {[%clk 0:00:01.3]}
87... Kf2 {[%clk 0:00:03.6]} 88. Kh4 {[%clk 0:00:01.3]} 88... g3+ {[%clk
0:00:03.2]} 0-1

[Event "*** Titled Tuesday Blitz"]
[Site "Chess.com"]
[Date "2020.04.28"]
[Round "5"]
[White "Barys1974"]
[Black "Michaelson_11"]
[Result "1-0"]
[WhiteElo "2637"]
[BlackElo "1993"]
[TimeControl "180+1"]
[EndTime "10:50:21 PDT"]
[Termination "Barys1974 won by resignation"]

1. e4 {[%clk 0:03:00.9]} 1... c5 {[%clk 0:02:55.9]} 2. Nf3 {[%clk 0:03:00.5]}
2... Nc6 {[%clk 0:02:56.3]} 3. Bb5 {[%clk 0:02:59.5]} 3... g6 {[%clk 0:02:55.8]}
4. O-O {[%clk 0:02:59]} 4... Bg7 {[%clk 0:02:53.2]} 5. c3 {[%clk 0:02:59.4]}
5... Nf6 {[%clk 0:02:53.4]} 6. Re1 {[%clk 0:02:59.1]} 6... O-O {[%clk
0:02:51.5]} 7. h3 {[%clk 0:02:58.8]} 7... e5 {[%clk 0:02:35.1]} 8. d3 {[%clk
0:02:49.2]} 8... d6 {[%clk 0:02:31]} 9. a3 {[%clk 0:02:49.3]} 9... Be6 {[%clk
0:02:27.3]} 10. b4 {[%clk 0:02:48.1]} 10... b6 {[%clk 0:01:55.5]} 11. Bxc6
{[%clk 0:02:45.8]} 1-0

[Event "*** Titled Tuesday Blitz"]
[Site "Chess.com"]
[Date "2020.04.28"]
[Round "5"]
[White "zmeeed67"]
[Black "EddieMarsalla"]
[Result "0-1"]
[WhiteElo "2382"]
[BlackElo "2552"]
[TimeControl "180+1"]
[EndTime "10:50:50 PDT"]
[Termination "EddieMarsalla won by resignation"]

1. d4 {[%clk 0:03:00.9]} 1... d5 {[%clk 0:02:59.2]} 2. c4 {[%clk 0:03:01.4]}
2... Bf5 {[%clk 0:02:59.7]} 3. cxd5 {[%clk 0:02:59.9]} 3... Bxb1 {[%clk
0:03:00.2]} 4. Qa4+ {[%clk 0:03:00.3]} 4... c6 {[%clk 0:03:00.3]} 5. Rxb1 {[%clk
0:02:58.2]} 5... Qxd5 {[%clk 0:02:59.8]} 6. Nf3 {[%clk 0:02:54.6]} 6... Nd7
{[%clk 0:03:00]} 7. e3 {[%clk 0:02:44.1]} 7... e6 {[%clk 0:03:00.2]} 8. Bc4
{[%clk 0:02:36.3]} 8... Qf5 {[%clk 0:02:59.4]} 9. Nd2 {[%clk 0:01:48.9]} 9... b5
{[%clk 0:02:57.8]} 10. g4 {[%clk 0:01:46.5]} 10... Qxb1 {[%clk 0:02:33]} 0-1

[Event "*** Titled Tuesday Blitz"]
[Site "Chess.com"]
[Date "2020.04.28"]
[Round "5"]
[White "dukicz123"]
[Black "IMUffeVinther-Schou"]
[Result "1-0"]
[WhiteElo "2493"]
[BlackElo "2273"]
[TimeControl "180+1"]
[EndTime "10:50:52 PDT"]
[Termination "dukicz123 won by resignation"]

1. e4 {[%clk 0:03:00.9]} 1... c5 {[%clk 0:02:59.1]} 2. Nf3 {[%clk 0:03:00.2]}
2... e6 {[%clk 0:02:58.6]} 3. d4 {[%clk 0:03:00.7]} 3... cxd4 {[%clk 0:02:58]}
4. Nxd4 {[%clk 0:03:01.6]} 4... a6 {[%clk 0:02:58.5]} 5. Bd3 {[%clk 0:03:01.5]}
5... g6 {[%clk 0:02:57.5]} 6. O-O {[%clk 0:02:55.1]} 6... Bg7 {[%clk 0:02:57.1]}
7. Nb3 {[%clk 0:02:55.7]} 7... Ne7 {[%clk 0:02:56.3]} 8. c4 {[%clk 0:02:55.6]}
8... Nbc6 {[%clk 0:02:55.4]} 9. Nc3 {[%clk 0:02:55.6]} 9... O-O {[%clk
0:02:54.5]} 10. Bg5 {[%clk 0:02:40]} 10... b6 {[%clk 0:02:46.6]} 11. Qd2 {[%clk
0:02:11]} 11... Qc7 {[%clk 0:02:38.8]} 12. Rac1 {[%clk 0:02:07.7]} 12... Ne5
{[%clk 0:02:29.3]} 13. Bxe7 {[%clk 0:02:01.9]} 1-0

[Event "*** Titled Tuesday Blitz"]
[Site "Chess.com"]
[Date "2020.04.28"]
[Round "5"]
[White "Vice64"]
[Black "Alexa797"]
[Result "1-0"]
[WhiteElo "2606"]
[BlackElo "2333"]
[TimeControl "180+1"]
[EndTime "10:50:58 PDT"]
[Termination "Vice64 won by resignation"]

1. e4 {[%clk 0:03:00.9]} 1... c5 {[%clk 0:03:00.1]} 2. Nf3 {[%clk 0:03:00.5]}
2... e6 {[%clk 0:03:00.1]} 3. d4 {[%clk 0:03:00]} 3... cxd4 {[%clk 0:03:01]} 4.
Nxd4 {[%clk 0:03:00.4]} 4... Nf6 {[%clk 0:03:01.5]} 5. Nc3 {[%clk 0:03:00.7]}
5... Nc6 {[%clk 0:03:02]} 6. Ndb5 {[%clk 0:02:59.9]} 6... Bb4 {[%clk 0:03:01.6]}
7. a3 {[%clk 0:02:59.4]} 7... Bxc3+ {[%clk 0:03:01.7]} 8. Nxc3 {[%clk
0:03:00.3]} 8... d5 {[%clk 0:03:02.5]} 9. Bd3 {[%clk 0:03:00.7]} 9... d4 {[%clk
0:03:00.7]} 10. Ne2 {[%clk 0:03:00.2]} 10... e5 {[%clk 0:03:01.1]} 11. O-O
{[%clk 0:03:00.2]} 11... O-O {[%clk 0:03:01.6]} 12. h3 {[%clk 0:02:59.8]} 12...
h6 {[%clk 0:02:58.6]} 13. b4 {[%clk 0:02:59.6]} 13... a5 {[%clk 0:02:52.9]} 14.
b5 {[%clk 0:02:55.7]} 14... Ne7 {[%clk 0:02:53.1]} 15. a4 {[%clk 0:02:53.5]}
15... Ng6 {[%clk 0:02:51.9]} 16. c3 {[%clk 0:02:46]} 16... dxc3 {[%clk
0:02:47.9]} 17. Nxc3 {[%clk 0:02:46.9]} 17... Be6 {[%clk 0:02:46.6]} 18. Be3
{[%clk 0:02:42.1]} 18... Rc8 {[%clk 0:02:44.4]} 19. Rc1 {[%clk 0:02:41.6]} 19...
Qd6 {[%clk 0:02:33.2]} 20. Qe2 {[%clk 0:02:32.4]} 20... Rfd8 {[%clk 0:02:30]}
21. Bb1 {[%clk 0:02:25.1]} 21... Qb4 {[%clk 0:02:27.5]} 22. Nd5 {[%clk
0:02:18.2]} 22... Nxe4 {[%clk 0:02:11.9]} 23. Nxb4 {[%clk 0:02:16.8]} 1-0

[Event "*** Titled Tuesday Blitz"]
[Site "Chess.com"]
[Date "2020.04.28"]
[Round "5"]
[White "verdest"]
[Black "Ceejay271"]
[Result "1-0"]
[WhiteElo "2590"]
[BlackElo "2325"]
[TimeControl "180+1"]
[EndTime "10:51:06 PDT"]
[Termination "verdest won by resignation"]

1. d4 {[%clk 0:03:00.9]} 1... Nf6 {[%clk 0:02:59.3]} 2. c4 {[%clk 0:02:58.7]}
2... e6 {[%clk 0:02:59.2]} 3. Nf3 {[%clk 0:02:58.4]} 3... d5 {[%clk 0:02:58.4]}
4. Nc3 {[%clk 0:02:58.3]} 4... Nbd7 {[%clk 0:02:58]} 5. Bf4 {[%clk 0:02:54.7]}
5... dxc4 {[%clk 0:02:57.4]} 6. e3 {[%clk 0:02:53.8]} 6... Nd5 {[%clk
0:02:56.8]} 7. Bxc4 {[%clk 0:02:53.8]} 7... Nxf4 {[%clk 0:02:56.2]} 8. exf4
{[%clk 0:02:54.7]} 8... Bd6 {[%clk 0:02:54.5]} 9. g3 {[%clk 0:02:54.7]} 9... a6
{[%clk 0:02:53.7]} 10. O-O {[%clk 0:02:53.9]} 10... O-O {[%clk 0:02:53.2]} 11.
Qe2 {[%clk 0:02:52.1]} 11... b5 {[%clk 0:02:52.3]} 12. Bd3 {[%clk 0:02:49.3]}
12... c5 {[%clk 0:02:51.3]} 13. Ne4 {[%clk 0:02:43.1]} 13... Be7 {[%clk
0:02:49.2]} 14. dxc5 {[%clk 0:02:42.8]} 14... Nxc5 {[%clk 0:02:48.9]} 15. Nxc5
{[%clk 0:02:42.8]} 15... Bxc5 {[%clk 0:02:40.5]} 16. Bxh7+ {[%clk 0:02:33.5]}
16... Kxh7 {[%clk 0:02:39]} 17. Qe4+ {[%clk 0:02:26.7]} 17... Kg8 {[%clk
0:02:38.1]} 18. Ng5 {[%clk 0:02:16]} 18... g6 {[%clk 0:02:29.3]} 19. Qxa8 {[%clk
0:02:15.5]} 19... Qf6 {[%clk 0:02:25.8]} 20. Ne4 {[%clk 0:02:04]} 20... Qe7
{[%clk 0:02:15]} 21. Nxc5 {[%clk 0:02:03.7]} 21... Qxc5 {[%clk 0:02:15.5]} 22.
Rac1 {[%clk 0:02:03.2]} 1-0

[Event "*** Titled Tuesday Blitz"]
[Site "Chess.com"]
[Date "2020.04.28"]
[Round "5"]
[White "Triumphmate"]
[Black "Nafania1"]
[Result "0-1"]
[WhiteElo "2518"]
[BlackElo "2380"]
[TimeControl "180+1"]
[EndTime "10:51:25 PDT"]
[Termination "Nafania1 won by resignation"]

1. e4 {[%clk 0:03:00.9]} 1... e6 {[%clk 0:02:59.9]} 2. Nf3 {[%clk 0:03:00.4]}
2... d5 {[%clk 0:02:58.3]} 3. exd5 {[%clk 0:03:01.3]} 3... exd5 {[%clk
0:02:58.4]} 4. d4 {[%clk 0:03:02.2]} 4... Nf6 {[%clk 0:02:58.4]} 5. Bd3 {[%clk
0:03:03.1]} 5... Bd6 {[%clk 0:02:57.9]} 6. Be3 {[%clk 0:03:03.1]} 6... O-O
{[%clk 0:02:55.3]} 7. c3 {[%clk 0:03:03.5]} 7... Bg4 {[%clk 0:02:51.5]} 8. Nbd2
{[%clk 0:03:03.9]} 8... Nbd7 {[%clk 0:02:48.5]} 9. Qc2 {[%clk 0:03:03.6]} 9...
c5 {[%clk 0:02:36.9]} 10. O-O {[%clk 0:03:03.8]} 10... c4 {[%clk 0:02:35]} 11.
Bf5 {[%clk 0:03:03]} 11... Bxf5 {[%clk 0:02:31.3]} 12. Qxf5 {[%clk 0:03:03.9]}
12... h6 {[%clk 0:02:21]} 13. Rae1 {[%clk 0:03:00.5]} 13... Re8 {[%clk
0:02:20.4]} 14. Re2 {[%clk 0:02:56.7]} 14... Qc7 {[%clk 0:02:19.4]} 15. Rfe1
{[%clk 0:02:55.1]} 15... Re6 {[%clk 0:02:19.5]} 16. h3 {[%clk 0:02:54]} 16...
Rae8 {[%clk 0:02:18.6]} 17. g4 {[%clk 0:02:54]} 17... g6 {[%clk 0:01:52.4]} 18.
Qc2 {[%clk 0:02:52.3]} 18... Bf4 {[%clk 0:01:52.3]} 19. Kf1 {[%clk 0:02:45.7]}
19... Bxe3 {[%clk 0:01:50.3]} 20. Rxe3 {[%clk 0:02:46.2]} 20... Rxe3 {[%clk
0:01:50]} 21. Rxe3 {[%clk 0:02:47.1]} 21... Rxe3 {[%clk 0:01:49.7]} 22. fxe3
{[%clk 0:02:48]} 22... Qg3 {[%clk 0:01:49.3]} 23. Qd1 {[%clk 0:02:46]} 23...
Qxh3+ {[%clk 0:01:49.3]} 24. Kg1 {[%clk 0:02:45.3]} 24... Qg3+ {[%clk
0:01:46.7]} 25. Kf1 {[%clk 0:02:44.8]} 25... Nxg4 {[%clk 0:01:46.9]} 26. Qe2
{[%clk 0:02:45.3]} 26... Ndf6 {[%clk 0:01:36.9]} 0-1

[Event "*** Titled Tuesday Blitz"]
[Site "Chess.com"]
[Date "2020.04.28"]
[Round "5"]
[White "morfius"]
[Black "Rsnr"]
[Result "0-1"]
[WhiteElo "2595"]
[BlackElo "2848"]
[TimeControl "180+1"]
[EndTime "10:51:43 PDT"]
[Termination "Rsnr won by resignation"]

1. e4 {[%clk 0:03:00.9]} 1... c6 {[%clk 0:03:00.4]} 2. Nf3 {[%clk 0:02:59.8]}
2... d5 {[%clk 0:03:01.3]} 3. Nc3 {[%clk 0:03:00.2]} 3... Bg4 {[%clk 0:03:01.6]}
4. h3 {[%clk 0:02:58.2]} 4... Bh5 {[%clk 0:03:02.2]} 5. exd5 {[%clk 0:02:54.2]}
5... cxd5 {[%clk 0:03:03.1]} 6. g4 {[%clk 0:02:54.3]} 6... Bg6 {[%clk
0:03:03.2]} 7. Ne5 {[%clk 0:02:55]} 7... Nc6 {[%clk 0:03:03.7]} 8. Bb5 {[%clk
0:02:47.9]} 8... Rc8 {[%clk 0:03:03.8]} 9. d4 {[%clk 0:02:47.6]} 9... e6 {[%clk
0:03:03.8]} 10. h4 {[%clk 0:02:44.7]} 10... f6 {[%clk 0:03:03.4]} 11. Nxg6
{[%clk 0:02:44.6]} 11... hxg6 {[%clk 0:03:04.3]} 12. Qd3 {[%clk 0:02:44.5]}
12... Kf7 {[%clk 0:03:04.6]} 13. h5 {[%clk 0:02:41]} 13... gxh5 {[%clk
0:03:02.7]} 14. gxh5 {[%clk 0:02:41.6]} 14... Nge7 {[%clk 0:03:02.6]} 15. a3
{[%clk 0:02:40.8]} 15... Nf5 {[%clk 0:02:55.9]} 16. Be3 {[%clk 0:02:34.9]} 16...
a6 {[%clk 0:02:49.8]} 17. Ba4 {[%clk 0:02:26.5]} 17... b5 {[%clk 0:02:49.3]} 18.
Bb3 {[%clk 0:02:26.6]} 18... Na5 {[%clk 0:02:28.6]} 19. Ne2 {[%clk 0:01:53.3]}
19... Nxb3 {[%clk 0:02:18.6]} 20. Qxb3 {[%clk 0:01:45.8]} 20... Qc7 {[%clk
0:02:17.8]} 21. O-O-O {[%clk 0:01:45]} 21... Bd6 {[%clk 0:02:10.5]} 22. Kb1
{[%clk 0:01:44.5]} 22... Qc4 {[%clk 0:02:10.1]} 23. Rdg1 {[%clk 0:01:38.5]}
23... Qxe2 {[%clk 0:02:08.8]} 0-1

[Event "*** Titled Tuesday Blitz"]
[Site "Chess.com"]
[Date "2020.04.28"]
[Round "5"]
[White "Pomegranate988"]
[Black "Quiet_Desperation"]
[Result "1-0"]
[WhiteElo "2460"]
[BlackElo "1828"]
[TimeControl "180+1"]
[EndTime "10:51:49 PDT"]
[Termination "Pomegranate988 won by resignation"]

1. d4 {[%clk 0:03:00.9]} 1... Nf6 {[%clk 0:02:58.6]} 2. c4 {[%clk 0:03:01.4]}
2... e6 {[%clk 0:02:58.7]} 3. g3 {[%clk 0:03:01.7]} 3... Bb4+ {[%clk 0:02:56.1]}
4. Bd2 {[%clk 0:02:59.1]} 4... Qe7 {[%clk 0:02:55.5]} 5. Bg2 {[%clk 0:02:57.8]}
5... Nc6 {[%clk 0:02:55]} 6. Nf3 {[%clk 0:02:56.2]} 6... Bxd2+ {[%clk
0:02:55.1]} 7. Qxd2 {[%clk 0:02:53.7]} 7... Ne4 {[%clk 0:02:55.1]} 8. Qc2 {[%clk
0:02:52.6]} 8... Qb4+ {[%clk 0:02:53.3]} 9. Kf1 {[%clk 0:02:49.1]} 9... f5
{[%clk 0:02:37.5]} 10. a3 {[%clk 0:02:43.4]} 10... Qe7 {[%clk 0:02:36.7]} 11. b4
{[%clk 0:02:42.5]} 11... O-O {[%clk 0:02:35.8]} 12. b5 {[%clk 0:02:40.9]} 12...
Nd8 {[%clk 0:02:35.7]} 13. Nbd2 {[%clk 0:02:39.1]} 13... Nxd2+ {[%clk
0:02:34.5]} 14. Qxd2 {[%clk 0:02:34.6]} 14... Nf7 {[%clk 0:02:28.2]} 15. e3
{[%clk 0:02:29.2]} 15... d6 {[%clk 0:02:27.7]} 16. a4 {[%clk 0:01:51.8]} 16...
e5 {[%clk 0:02:26.6]} 17. a5 {[%clk 0:01:49.6]} 17... f4 {[%clk 0:02:15]} 18.
exf4 {[%clk 0:01:47.4]} 18... exf4 {[%clk 0:02:14.5]} 19. Re1 {[%clk 0:01:42.6]}
19... Qd8 {[%clk 0:02:08.9]} 20. Qxf4 {[%clk 0:01:38]} 20... Ne5 {[%clk
0:02:05.1]} 21. Qe4 {[%clk 0:01:37.6]} 21... Bf5 {[%clk 0:02:00.6]} 22. Qd5+
{[%clk 0:01:36.5]} 1-0

[Event "*** Titled Tuesday Blitz"]
[Site "Chess.com"]
[Date "2020.04.28"]
[Round "5"]
[White "IvanRadivojevic"]
[Black "olomi007"]
[Result "0-1"]
[WhiteElo "2481"]
[BlackElo "2659"]
[TimeControl "180+1"]
[EndTime "10:51:53 PDT"]
[Termination "olomi007 won by resignation"]

1. a3 {[%clk 0:03:00.9]} 1... c5 {[%clk 0:02:57.2]} 2. e4 {[%clk 0:02:59.5]}
2... Nc6 {[%clk 0:02:54.4]} 3. Nc3 {[%clk 0:02:59.8]} 3... g6 {[%clk 0:02:48]}
4. g3 {[%clk 0:02:59.8]} 4... Bg7 {[%clk 0:02:47.2]} 5. Bg2 {[%clk 0:03:00]}
5... d6 {[%clk 0:02:47.4]} 6. d3 {[%clk 0:03:00.3]} 6... e5 {[%clk 0:02:42.4]}
7. Be3 {[%clk 0:03:00.6]} 7... Nge7 {[%clk 0:02:41.6]} 8. Qd2 {[%clk 0:03:00.8]}
8... Nd4 {[%clk 0:02:35.7]} 9. Nd1 {[%clk 0:03:00.4]} 9... Be6 {[%clk
0:02:29.9]} 10. Rb1 {[%clk 0:02:59.8]} 10... O-O {[%clk 0:02:20.5]} 11. c3
{[%clk 0:02:59.3]} 11... Nb3 {[%clk 0:02:19.8]} 12. Qc2 {[%clk 0:02:59.5]} 12...
Rc8 {[%clk 0:02:14.5]} 13. f4 {[%clk 0:02:58.3]} 13... exf4 {[%clk 0:02:08.6]}
14. gxf4 {[%clk 0:02:56.6]} 14... d5 {[%clk 0:02:07.2]} 15. Qxb3 {[%clk
0:02:48.5]} 15... d4 {[%clk 0:02:06.9]} 16. Qc2 {[%clk 0:02:44.6]} 16... dxe3
{[%clk 0:02:00.9]} 17. Nxe3 {[%clk 0:02:45.5]} 17... f5 {[%clk 0:01:41.8]} 18.
e5 {[%clk 0:02:43]} 18... g5 {[%clk 0:01:42]} 19. Ne2 {[%clk 0:02:38.8]} 19...
Ng6 {[%clk 0:01:40.9]} 20. Qa4 {[%clk 0:02:13]} 20... gxf4 {[%clk 0:01:38.6]}
21. Nxf4 {[%clk 0:02:10.8]} 21... Qh4+ {[%clk 0:01:37.7]} 0-1

[Event "*** Titled Tuesday Blitz"]
[Site "Chess.com"]
[Date "2020.04.28"]
[Round "5"]
[White "jacky72"]
[Black "eljanov"]
[Result "0-1"]
[WhiteElo "2707"]
[BlackElo "2894"]
[TimeControl "180+1"]
[EndTime "10:52:11 PDT"]
[Termination "eljanov won by checkmate"]

1. d4 {[%clk 0:03:00.9]} 1... d5 {[%clk 0:02:59.9]} 2. c4 {[%clk 0:03:00.4]}
2... e6 {[%clk 0:02:59.7]} 3. Nc3 {[%clk 0:03:00.1]} 3... Nf6 {[%clk 0:02:59.5]}
4. cxd5 {[%clk 0:03:00]} 4... exd5 {[%clk 0:03:00.4]} 5. Bg5 {[%clk 0:03:00.1]}
5... c6 {[%clk 0:03:01]} 6. Qc2 {[%clk 0:03:00.6]} 6... h6 {[%clk 0:02:56.7]} 7.
Bh4 {[%clk 0:02:58.6]} 7... Be7 {[%clk 0:02:55]} 8. e3 {[%clk 0:02:59]} 8... O-O
{[%clk 0:02:53.2]} 9. Bd3 {[%clk 0:02:59.5]} 9... Nbd7 {[%clk 0:02:53.1]} 10.
Nf3 {[%clk 0:02:58.3]} 10... Re8 {[%clk 0:02:53.3]} 11. O-O {[%clk 0:02:56.6]}
11... Ne4 {[%clk 0:02:52.7]} 12. Bxe7 {[%clk 0:02:54]} 12... Qxe7 {[%clk
0:02:52.6]} 13. Bxe4 {[%clk 0:02:54.9]} 13... dxe4 {[%clk 0:02:52.5]} 14. Nd2
{[%clk 0:02:55.8]} 14... f5 {[%clk 0:02:42]} 15. a3 {[%clk 0:02:45.1]} 15... Nf6
{[%clk 0:02:41.7]} 16. b4 {[%clk 0:02:44.6]} 16... Be6 {[%clk 0:02:36.3]} 17.
Na4 {[%clk 0:02:43.1]} 17... Bd5 {[%clk 0:02:28.2]} 18. Nc5 {[%clk 0:02:38.7]}
18... b6 {[%clk 0:02:23]} 19. Na4 {[%clk 0:02:36.5]} 19... Rac8 {[%clk
0:02:21.2]} 20. Nc3 {[%clk 0:02:32.4]} 20... Qe6 {[%clk 0:02:16]} 21. Rac1
{[%clk 0:02:31]} 21... b5 {[%clk 0:01:37.8]} 22. Nxd5 {[%clk 0:02:25.7]} 22...
Nxd5 {[%clk 0:01:35.6]} 23. Nb3 {[%clk 0:02:25.1]} 23... f4 {[%clk 0:01:34.6]}
24. exf4 {[%clk 0:02:22.9]} 24... Nxf4 {[%clk 0:01:33.3]} 25. Nc5 {[%clk
0:02:10.7]} 25... Qg4 {[%clk 0:01:27.1]} 26. g3 {[%clk 0:02:05.7]} 26... Ne2+
{[%clk 0:01:22.2]} 27. Kg2 {[%clk 0:02:06.2]} 27... Qf3+ {[%clk 0:01:22]} 28.
Kh3 {[%clk 0:02:06.5]} 28... Nf4+ {[%clk 0:01:21.6]} 29. Kh4 {[%clk 0:02:07]}
29... g5# {[%clk 0:01:21.3]} 0-1

[Event "*** Titled Tuesday Blitz"]
[Site "Chess.com"]
[Date "2020.04.28"]
[Round "5"]
[White "vaishali2001"]
[Black "Oneofmyturns"]
[Result "1-0"]
[WhiteElo "2502"]
[BlackElo "2651"]
[TimeControl "180+1"]
[EndTime "10:52:15 PDT"]
[Termination "vaishali2001 won by resignation"]

1. Nf3 {[%clk 0:03:00.9]} 1... d5 {[%clk 0:02:59.4]} 2. g3 {[%clk 0:03:00.8]}
2... g6 {[%clk 0:02:57.3]} 3. Bg2 {[%clk 0:02:56.7]} 3... Bg7 {[%clk 0:02:57.8]}
4. d4 {[%clk 0:02:56.4]} 4... Nf6 {[%clk 0:02:56.3]} 5. c4 {[%clk 0:02:53.4]}
5... O-O {[%clk 0:02:52.9]} 6. O-O {[%clk 0:02:49.3]} 6... dxc4 {[%clk
0:02:52.6]} 7. Na3 {[%clk 0:02:48.7]} 7... c3 {[%clk 0:02:53.2]} 8. bxc3 {[%clk
0:02:49.3]} 8... c5 {[%clk 0:02:54]} 9. Bb2 {[%clk 0:02:48.7]} 9... Qa5 {[%clk
0:02:50.2]} 10. Ne5 {[%clk 0:02:36.7]} 10... Rd8 {[%clk 0:02:46.5]} 11. Qb3
{[%clk 0:02:25.8]} 11... e6 {[%clk 0:02:30.7]} 12. Bxb7 {[%clk 0:01:58.5]} 12...
Bxb7 {[%clk 0:02:13]} 13. Qxb7 {[%clk 0:01:59.4]} 13... Qb6 {[%clk 0:02:02.3]}
14. Qxa8 {[%clk 0:01:32.3]} 14... Qxb2 {[%clk 0:01:57.4]} 15. Rab1 {[%clk
0:01:29.1]} 15... Qxa3 {[%clk 0:01:48.7]} 16. Rxb8 {[%clk 0:01:28.2]} 16... Rxb8
{[%clk 0:01:48.5]} 17. Qxb8+ {[%clk 0:01:29.1]} 17... Bf8 {[%clk 0:01:49.2]} 18.
Qc7 {[%clk 0:01:23.3]} 1-0